fUSD/lending_fUSD_20251026
["ID","MTS","AMOUNT","RATE_DAILY","PERIOD"]
[392456223,1761502269771,-1515.21,0.00043835,120]
[392456224,1761502269781,-500.0,0.00043835,120]
[392456225,1761502269790,-500.0,0.00043835,2]
[392456226,1761502269799,-500.0,0.00043835,120]
[392456227,1761502269808,-512.47811293,0.00043835,120]
[392456228,1761502269818,-500.0,0.00043835,120]
[392456229,1761502269828,-500.0,0.00043835,120]
[392456230,1761502269838,-500.0,0.00043835,120]
[392456231,1761502269848,-500.0,0.00043835,120]
[392456232,1761502269858,-500.0,0.00043835,2]
[392456233,1761502269868,-500.0,0.00043835,120]
[392456234,1761502269878,-2469.89,0.00043835,120]
[392456235,1761502269890,-500.0,0.00043835,120]
[392456236,1761502269899,-500.0,0.00043835,120]
[392456237,1761502269909,-3266.86,0.00043835,120]
[392456238,1761502269918,-231.60827316,0.00043835,120]
[392456239,1761502269928,-500.0,0.00043835,120]
[392456240,1761502269938,-478.67597373,0.00043835,120]
[392456241,1761502269948,-558.1,0.00043835,120]
[392456242,1761502269959,-295.75228844,0.00043835,2]
[392456243,1761502269968,-579.16,0.00043835,120]
[392456244,1761502269978,-500.0,0.00043835,120]
[392456245,1761502269986,-500.0,0.00043835,120]
[392456246,1761502269996,-500.0,0.00043835,120]
[392456247,1761502270006,-500.0,0.00043835,120]
[392456248,1761502270016,-500.0,0.00043835,120]
[392456249,1761502270026,-213.24860999,0.00043835,120]
[392456250,1761502270037,-560.89,0.00043835,120]
[392456251,1761502270046,-500.0,0.00043835,2]
[392456252,1761502270057,-500.0,0.00043835,120]
[392456253,1761502270067,-500.0,0.00043835,120]
[392456254,1761502270076,-500.0,0.00043835,120]
[392456255,1761502270086,-500.0,0.00043835,120]
[392456256,1761502270095,-300.0,0.00043836,120]
[392456257,1761502270105,-500.0,0.00043836,120]
[392456258,1761502270115,-500.0,0.00043836,120]
[392456259,1761502270124,-500.0,0.00043836,120]
[392456260,1761502270133,-500.0,0.00043836,120]
[392456261,1761502270143,-500.0,0.00043836,120]
[392456262,1761502270152,-500.0,0.00043836,120]
[392456263,1761502270162,-500.0,0.00043836,120]
[392456264,1761502270172,-500.0,0.00043836,120]
[392456265,1761502270182,-500.0,0.00043836,120]
[392456266,1761502270192,-500.0,0.00043836,120]
[392456267,1761502270203,-500.0,0.00043836,120]
[392456268,1761502270219,-500.0,0.00043836,120]
[392456269,1761502270232,-500.0,0.00043836,120]
[392456270,1761502270242,-500.0,0.00043836,120]
[392456271,1761502270252,-500.0,0.00043836,120]
[392456272,1761502270262,-500.0,0.00043836,120]
[392456273,1761502270271,-500.0,0.00043836,120]
[392456274,1761502270281,-500.0,0.00043836,120]
[392456275,1761502270291,-500.0,0.00043836,120]
[392456276,1761502270301,-500.0,0.00043836,120]
[392456277,1761502270310,-500.0,0.00043836,120]
[392456278,1761502270321,-500.0,0.00043836,120]
[392456279,1761502270331,-500.0,0.00043836,120]
[392456280,1761502270340,-500.0,0.00043836,120]
[392456281,1761502270350,-500.0,0.00043836,120]
[392456282,1761502270360,-500.0,0.00043836,120]
[392456283,1761502270371,-500.0,0.00043836,120]
[392456284,1761502270380,-500.0,0.00043836,120]
[392456285,1761502270392,-500.0,0.00043836,120]
[392456286,1761502270402,-500.0,0.00043836,120]
[392456287,1761502270414,-500.0,0.00043836,120]
[392456288,1761502270425,-500.0,0.00043836,120]
[392456289,1761502270435,-500.0,0.00043836,120]
[392456290,1761502270445,-500.0,0.00043836,120]
[392456291,1761502270457,-500.0,0.00043836,120]
[392456292,1761502270470,-500.0,0.00043836,120]
[392456293,1761502270480,-500.0,0.00043836,120]
[392456294,1761502270490,-500.0,0.00043836,120]
[392456295,1761502270501,-500.0,0.00043836,120]
[392456296,1761502270512,-500.0,0.00043836,120]
[392456297,1761502270522,-500.0,0.00043836,120]
[392456298,1761502270535,-529.45044036,0.00043836,120]
[392456299,1761502270546,-1900.80226837,0.0004388,120]
[392456300,1761502270556,-5000.0,0.000439,120]
[392456301,1761502270566,-507.0,0.00043904,120]
[392456302,1761502270576,-241.03,0.00044,7]
[392456303,1761502270586,-984.05614758,0.00044,120]
[392456304,1761502270597,-2382.9,0.00044,7]
[392456305,1761502270607,-5052.20939508,0.00044,60]
[392456306,1761502270757,-154.0,0.00044,120]
[392456307,1761502270768,-160.0,0.00044,120]
[392456308,1761502270778,-2462.324107,0.00044,2]
[392456309,1761502270788,-1101.42349707,0.00044,2]
[392456310,1761502270797,-550.98,0.00044,120]
[392456311,1761502270807,-297.457094,0.00044,57]
[392456312,1761502270816,-211.57,0.00044,30]
[392456313,1761502270827,-257.91778498,0.00044099,50]
[392456314,1761502270836,-1000.0,0.00044109,2]
[392456315,1761502270845,-2639.589016,0.00044109,120]
[392456316,1761502270855,-520.716512,0.00044109,120]
[392456317,1761502270865,-1084.493549,0.00044109,120]
[392456318,1761502270874,-509.393433,0.00044109,120]
[392456319,1761502270884,-1838.228614,0.00044109,120]
[392456320,1761502270896,-5780.238697,0.00044109,120]
[392456321,1761502270906,-500.0,0.00044109,2]
[392456322,1761502270915,-500.0,0.00044109,2]
[392456323,1761502270925,-500.0,0.00044109,2]
[392456324,1761502270935,-500.0,0.00044109,120]
[392456325,1761502270944,-500.0,0.00044109,120]
[392456326,1761502270954,-500.0,0.00044109,120]
[392456327,1761502270963,-500.0,0.00044109,2]
[392456328,1761502270973,-583.15,0.00044109,120]
[392456329,1761502270982,-500.0,0.00044109,120]
[392456330,1761502270991,-436.00474752,0.00044109,120]
[392456331,1761502271000,-500.0,0.00044109,120]
[392456332,1761502271009,-266.99232593,0.00044109,120]
[392456333,1761502271019,-536.02,0.00044109,120]
[392456334,1761502271029,-254.11372467,0.00044109,120]
[392456335,1761502271038,-500.0,0.00044109,120]
[392456336,1761502271047,-494.44653089,0.00044109,120]
[392456337,1761502271057,-500.0,0.00044109,120]
[392456338,1761502271066,-500.0,0.00044109,120]
[392456339,1761502271078,-588.41,0.00044109,120]
[392456340,1761502271087,-500.0,0.00044109,120]
[392456341,1761502271097,-500.0,0.00044109,120]
[392456342,1761502271106,-574.84,0.00044109,120]
[392456343,1761502271116,-500.0,0.00044109,120]
[392456344,1761502271125,-500.0,0.00044109,120]
[392456345,1761502271135,-500.0,0.00044109,120]
[392456346,1761502271144,-500.0,0.00044109,120]
[392456347,1761502271155,-152.2522581,0.00044109,120]
[392456348,1761502271165,-500.0,0.00044109,120]
[392456349,1761502271175,-546.01,0.00044109,120]
[392456350,1761502271185,-500.0,0.00044109,120]
[392456351,1761502271195,-872.67,0.00044109,120]
[392456352,1761502271204,-638.78,0.00044109,120]
[392456353,1761502271213,-500.0,0.00044109,120]
[392456354,1761502271223,-500.0,0.00044109,120]
[392456355,1761502271233,-500.0,0.00044109,120]
[392456356,1761502271243,-500.0,0.00044109,120]
[392456357,1761502271254,-500.0,0.00044109,120]
[392456358,1761502271265,-500.0,0.00044109,120]
[392456359,1761502271276,-621.96,0.00044109,120]
[392456360,1761502271288,-500.0,0.00044109,120]
[392456361,1761502271297,-3243.76,0.00044109,120]
[392456362,1761502271307,-500.0,0.00044109,120]
[392456363,1761502271316,-500.0,0.00044109,120]
[392456364,1761502271326,-500.0,0.00044109,120]
[392456365,1761502271335,-500.0,0.00044109,120]
[392456366,1761502271345,-500.0,0.00044109,120]
[392456367,1761502271355,-500.0,0.00044109,120]
[392456368,1761502271365,-3325.32,0.00044109,120]
[392456369,1761502271374,-500.0,0.00044109,120]
[392456370,1761502271384,-500.0,0.00044109,120]
[392456371,1761502271394,-574.04,0.00044109,120]
[392456372,1761502271403,-500.0,0.00044109,120]
[392456373,1761502271412,-500.0,0.00044109,120]
[392456374,1761502271421,-500.0,0.00044109,120]
[392456375,1761502271431,-500.0,0.00044109,120]
[392456376,1761502271440,-500.0,0.00044109,120]
[392456377,1761502271449,-500.0,0.00044109,120]
[392456378,1761502271463,-500.0,0.00044109,120]
[392456379,1761502271472,-500.0,0.00044109,120]
[392456380,1761502271481,-500.0,0.00044109,120]
[392456381,1761502271490,-500.0,0.00044109,120]
[392456382,1761502271501,-500.0,0.00044109,120]
[392456383,1761502271510,-300.0,0.00044109,2]
[392456384,1761502271520,-500.0,0.00044109,120]
[392456385,1761502271531,-428.70746203,0.00044109,120]
[392456386,1761502271540,-500.0,0.00044109,120]
[392456387,1761502271550,-500.0,0.00044109,120]
[392456388,1761502271559,-500.0,0.00044109,120]
[392456389,1761502271569,-500.0,0.00044109,120]
[392456390,1761502271579,-500.0,0.00044109,120]
[392456391,1761502271588,-3293.52,0.00044109,120]
[392456392,1761502271597,-500.0,0.00044109,120]
[392456393,1761502271606,-500.0,0.00044109,120]
[392456394,1761502271616,-500.0,0.00044109,120]
[392456395,1761502271625,-500.0,0.00044109,120]
[392456396,1761502271635,-412.03295994,0.00044109,120]
[392456397,1761502271644,-500.0,0.00044109,7]
[392456398,1761502271653,-500.0,0.00044109,120]
[392456399,1761502271663,-500.0,0.00044109,120]
[392456400,1761502271672,-500.0,0.00044109,120]
[392456401,1761502271682,-500.0,0.00044109,120]
[392456402,1761502271692,-500.0,0.00044109,120]
[392456403,1761502271701,-3275.26,0.00044109,120]
[392456404,1761502271711,-500.0,0.00044109,120]
[392456405,1761502271721,-500.0,0.00044109,120]
[392456406,1761502271733,-500.0,0.00044109,120]
[392456407,1761502271742,-500.0,0.00044109,120]
[392456408,1761502271751,-500.0,0.00044109,120]
[392456409,1761502271761,-500.0,0.00044109,120]
[392456410,1761502271770,-500.0,0.00044109,120]
[392456411,1761502271780,-500.0,0.00044109,120]
[392456412,1761502271789,-500.0,0.00044109,120]
[392456413,1761502271798,-500.0,0.00044109,120]
[392456414,1761502271807,-500.0,0.00044109,120]
[392456415,1761502271816,-3408.96,0.00044109,120]
[392456416,1761502271825,-500.0,0.00044109,120]
[392456417,1761502271835,-500.0,0.00044109,120]
[392456418,1761502271843,-500.0,0.00044109,120]
[392456419,1761502271852,-500.0,0.00044109,120]
[392456420,1761502271861,-500.0,0.00044109,120]
[392456421,1761502271871,-500.0,0.00044109,120]
[392456422,1761502271880,-500.0,0.00044109,120]
[392456423,1761502271890,-500.0,0.00044109,120]
[392456424,1761502271899,-446.2249745,0.00044109,120]
[392456425,1761502271908,-500.0,0.00044109,120]
[392456426,1761502271919,-500.0,0.00044109,120]
[392456427,1761502271928,-500.0,0.00044109,120]
[392456428,1761502271937,-500.0,0.00044109,120]
[392456429,1761502271947,-220.26604609,0.00044109,120]
[392456430,1761502271957,-500.0,0.00044109,120]
[392456431,1761502271966,-500.0,0.00044109,120]
[392456432,1761502271975,-500.0,0.00044109,120]
[392456433,1761502271985,-500.0,0.00044109,120]
[392456434,1761502271994,-500.0,0.00044109,120]
[392456435,1761502272003,-500.0,0.00044109,120]
[392456436,1761502272012,-532.63473268,0.00044109,120]
[392456437,1761502272021,-273.16508463,0.00044109,120]
[392456438,1761502272030,-500.0,0.00044109,120]
[392456439,1761502272039,-3360.34,0.00044109,120]
[392456440,1761502272048,-500.0,0.00044109,120]
[392456441,1761502272057,-500.0,0.00044109,120]
[392456442,1761502272066,-500.0,0.00044109,120]
[392456443,1761502272075,-500.0,0.00044109,120]
[392456444,1761502272083,-585.42833008,0.00044109,120]
[392456445,1761502272092,-500.0,0.00044109,120]
[392456446,1761502272101,-500.0,0.00044109,120]
[392456447,1761502272110,-500.0,0.00044109,120]
[392456448,1761502272119,-500.0,0.00044109,120]
[392456449,1761502272127,-500.0,0.00044109,120]
[392456450,1761502272137,-500.0,0.00044109,120]
[392456451,1761502272146,-500.0,0.00044109,120]
[392456452,1761502272155,-500.0,0.00044109,120]
[392456453,1761502272164,-500.0,0.00044109,120]
[392456454,1761502272172,-356.11252257,0.00044109,120]
[392456455,1761502272181,-500.0,0.00044109,120]
[392456456,1761502272191,-500.0,0.00044109,120]
[392456457,1761502272200,-500.0,0.00044109,120]
[392456458,1761502272209,-500.0,0.00044109,120]
[392456459,1761502272218,-500.0,0.00044109,120]
[392456460,1761502272228,-500.0,0.00044109,120]
[392456461,1761502272238,-500.0,0.00044109,120]
[392456462,1761502272247,-500.0,0.00044109,120]
[392456463,1761502272256,-500.0,0.00044109,120]
[392456464,1761502272266,-500.0,0.00044109,120]
[392456465,1761502272275,-500.0,0.00044109,120]
[392456466,1761502272284,-500.0,0.00044109,120]
[392456467,1761502272293,-500.0,0.00044109,120]
[392456468,1761502272302,-247.68843628,0.00044109,120]
[392456469,1761502272311,-500.0,0.00044109,120]
[392456470,1761502272320,-500.0,0.00044109,120]
[392456471,1761502272330,-222.51873572,0.00044109,120]
[392456472,1761502272340,-500.0,0.00044109,120]
[392456473,1761502272351,-500.0,0.00044109,120]
[392456474,1761502272361,-500.0,0.00044109,120]
[392456475,1761502272371,-500.0,0.00044109,120]
[392456476,1761502272380,-500.0,0.00044109,120]
[392456477,1761502272391,-3270.66,0.00044109,120]
[392456478,1761502272401,-500.0,0.00044109,120]
[392456479,1761502272411,-500.0,0.00044109,120]
[392456480,1761502272420,-500.0,0.00044109,120]
[392456481,1761502272429,-500.0,0.00044109,120]
[392456482,1761502272438,-289.03962844,0.00044109,120]
[392456483,1761502272448,-500.0,0.00044109,120]
[392456484,1761502272460,-500.0,0.00044109,120]
[392456485,1761502272471,-500.0,0.00044109,120]
[392456486,1761502272481,-500.0,0.00044109,120]
[392456487,1761502272490,-219.48953524,0.00044109,120]
[392456488,1761502272503,-500.0,0.00044109,120]
[392456489,1761502272512,-834.14,0.00044109,60]
[392456490,1761502272523,-3464.48,0.00044109,120]
[392456491,1761502272536,-500.0,0.00044109,120]
[392456492,1761502272546,-500.0,0.00044109,120]
[392456493,1761502272556,-3280.36,0.00044109,120]
[392456494,1761502272566,-299.9590481,0.00044109,120]
[392456495,1761502272576,-498.61856485,0.00044109,120]
[392456496,1761502272585,-500.0,0.00044109,2]
[392456497,1761502272595,-608.26,0.00044109,120]
[392456498,1761502272604,-500.0,0.00044109,120]
[392456499,1761502272614,-500.0,0.00044109,120]
[392456500,1761502272623,-500.0,0.00044109,120]
[392456501,1761502272635,-500.0,0.00044109,120]
[392456502,1761502272645,-500.0,0.00044109,120]
[392456503,1761502272657,-500.0,0.00044109,120]
[392456504,1761502272668,-500.0,0.00044109,120]
[392456505,1761502272679,-636.98,0.00044109,120]
[392456506,1761502272688,-500.0,0.00044109,120]
[392456507,1761502272697,-500.0,0.00044109,120]
[392456508,1761502272706,-500.0,0.00044109,120]
[392456509,1761502272715,-500.0,0.00044109,120]
[392456510,1761502272724,-500.0,0.00044109,120]
[392456511,1761502272734,-500.0,0.00044109,120]
[392456512,1761502272745,-500.0,0.00044109,120]
[392456513,1761502272754,-500.0,0.00044109,120]
[392456514,1761502272764,-500.0,0.00044109,120]
[392456515,1761502272773,-300.0,0.00044109,2]
[392456516,1761502272784,-500.0,0.00044109,120]
[392456517,1761502272794,-3389.04,0.00044109,120]
[392456518,1761502272803,-500.0,0.00044109,120]
[392456519,1761502272813,-500.0,0.00044109,120]
[392456520,1761502272823,-500.0,0.00044109,120]
[392456521,1761502272834,-285.41456754,0.00044109,120]
[392456522,1761502272843,-500.0,0.00044109,120]
[392456523,1761502272853,-500.0,0.00044109,120]
[392456524,1761502272863,-500.0,0.00044109,120]
[392456525,1761502272872,-500.0,0.00044109,120]
[392456526,1761502272882,-3318.89,0.00044109,120]
[392456527,1761502272892,-500.0,0.00044109,120]
[392456528,1761502272902,-1312.59,0.00044109,30]
[392456529,1761502272911,-500.0,0.00044109,120]
[392456530,1761502272922,-500.0,0.00044109,120]
[392456531,1761502272931,-500.0,0.00044109,120]
[392456532,1761502272940,-500.0,0.00044109,120]
[392456533,1761502272950,-618.11,0.00044109,120]
[392456534,1761502272960,-500.0,0.00044109,120]
[392456535,1761502272971,-1000.0,0.00044109,120]
[392456536,1761502272981,-500.0,0.00044109,120]
[392456537,1761502272991,-562.26362252,0.00044109,120]
[392456538,1761502273001,-500.0,0.00044109,120]
[392456539,1761502273010,-577.98414871,0.00044109,120]
[392456540,1761502273020,-500.0,0.00044109,120]
[392456541,1761502273029,-2366.83,0.00044109,120]
[392456542,1761502273039,-500.0,0.00044109,120]
[392456543,1761502273049,-500.0,0.00044109,120]
[392456544,1761502273059,-500.0,0.00044109,120]
[392456545,1761502273069,-500.0,0.00044109,120]
[392456546,1761502273079,-500.0,0.00044109,120]
[392456547,1761502273088,-647.50514849,0.00044109,120]
[392456548,1761502273098,-540.06255008,0.00044109,120]
[392456549,1761502273107,-500.0,0.00044109,120]
[392456550,1761502273117,-2822.6,0.00044109,120]
[392456551,1761502273127,-500.0,0.00044109,120]
[392456552,1761502273136,-704.08,0.00044109,120]
[392456553,1761502273146,-500.0,0.00044109,120]
[392456554,1761502273155,-500.0,0.00044109,120]
[392456555,1761502273165,-500.0,0.00044109,120]
[392456556,1761502273173,-500.0,0.00044109,120]
[392456557,1761502273182,-500.0,0.00044109,120]
[392456558,1761502273191,-3260.07,0.00044109,120]
[392456559,1761502273201,-1524.98,0.00044109,120]
[392456560,1761502273212,-320.67802859,0.00044109,120]
[392456561,1761502273223,-7969.3,0.00044109,14]
[392456562,1761502273232,-500.0,0.00044109,120]
[392456563,1761502273241,-500.0,0.00044109,120]
[392456564,1761502273252,-500.0,0.00044109,120]
[392456565,1761502273263,-500.0,0.00044109,120]
[392456566,1761502273274,-915.47,0.00044109,120]
[392456567,1761502273283,-3261.63,0.00044109,120]
[392456568,1761502273293,-500.0,0.00044109,120]
[392456569,1761502273302,-500.0,0.00044109,120]
[392456570,1761502273312,-500.0,0.00044109,120]
[392456571,1761502273322,-1896.02,0.00044109,120]
[392456572,1761502273333,-500.0,0.00044109,120]
[392456573,1761502273342,-2684.62,0.00044109,120]
[392456574,1761502273353,-500.0,0.00044109,120]
[392456575,1761502273364,-500.0,0.00044109,120]
[392456576,1761502273374,-500.0,0.00044109,120]
[392456577,1761502273385,-500.0,0.00044109,120]
[392456578,1761502273395,-500.0,0.00044109,120]
[392456579,1761502273405,-500.0,0.00044109,120]
[392456580,1761502273416,-153.9096855,0.00044109,120]
[392456581,1761502273426,-500.0,0.00044109,120]
[392456582,1761502273436,-500.0,0.00044109,120]
[392456583,1761502273447,-500.0,0.00044109,120]
[392456584,1761502273458,-500.0,0.00044109,120]
[392456585,1761502273470,-500.0,0.00044109,120]
[392456586,1761502273480,-500.0,0.00044109,120]
[392456587,1761502273489,-500.0,0.00044109,120]
[392456588,1761502273500,-750.74,0.00044109,120]
[392456589,1761502273511,-500.0,0.00044109,120]
[392456590,1761502273632,-3318.43,0.00044109,120]
[392456591,1761502273644,-2291.46,0.00044109,2]
[392456592,1761502273654,-500.0,0.00044109,120]
[392456593,1761502273665,-500.0,0.00044109,120]
[392456594,1761502273675,-500.0,0.00044109,120]
[392456595,1761502273684,-1515.21,0.00044109,120]
[392456596,1761502273693,-500.0,0.00044109,2]
[392456597,1761502273702,-500.0,0.00044109,120]
[392456598,1761502273711,-500.0,0.00044109,120]
[392456599,1761502273721,-500.0,0.00044109,120]
[392456600,1761502273730,-2469.89,0.00044109,120]
[392456601,1761502273739,-500.0,0.00044109,120]
[392456602,1761502273749,-500.0,0.00044109,120]
[392456603,1761502273759,-3266.86,0.00044109,120]
[392456604,1761502273768,-500.0,0.00044109,120]
[392456605,1761502273778,-558.1,0.00044109,120]
[392456606,1761502273787,-579.16,0.00044109,120]
[392456607,1761502273797,-500.0,0.00044109,120]
[392456608,1761502273806,-500.0,0.00044109,120]
[392456609,1761502273817,-500.0,0.00044109,120]
[392456610,1761502273827,-283.12282996,0.00044109,120]
[392456611,1761502273837,-560.89,0.00044109,120]
[392456612,1761502273846,-500.0,0.00044109,2]
[392456613,1761502273856,-500.0,0.00044109,120]
[392456614,1761502273866,-285.52364155,0.00044109,120]
[392456615,1761502273875,-297.86901103,0.00044109,120]
[392456616,1761502273884,-500.0,0.00044109,120]
[392456617,1761502273894,-1010.0,0.00044142,30]
[392456618,1761502273904,-150.0,0.00044237,2]
[392456619,1761502273915,-573.0,0.00044237,2]
[392456620,1761502273925,-2054.0,0.00044237,2]
[392456621,1761502273934,-819.0,0.00044237,2]
[392456622,1761502273946,-3415.0,0.00044237,2]
[392456623,1761502273956,-696.9,0.00044284,30]
[392456624,1761502273967,-475.88,0.00044284,30]
[392456625,1761502273976,-696.9,0.00044284,30]
[392456626,1761502273985,-475.88,0.00044284,30]
[392456627,1761502273995,-696.9,0.00044284,30]
[392456628,1761502274005,-475.88,0.00044284,30]
[392456629,1761502274013,-696.9,0.00044284,30]
[392456630,1761502274023,-475.88,0.00044284,30]
[392456631,1761502274031,-475.88,0.00044284,30]
[392456632,1761502274041,-916.43,0.00044284,30]
[392456633,1761502274050,-450.57,0.00044284,30]
[392456634,1761502274059,-2826.59,0.000443,30]
[392456635,1761502274069,-509.699299,0.00044303,120]
[392456636,1761502274079,-821.418238,0.00044303,120]
[392456637,1761502274087,-328.606078,0.00044303,120]
[392456638,1761502274097,-1000.0,0.00044383,2]
[392456639,1761502274105,-500.0,0.00044383,2]
[392456640,1761502274115,-500.0,0.00044383,2]
[392456641,1761502274124,-500.0,0.00044383,2]
[392456642,1761502274133,-500.0,0.00044383,120]
[392456643,1761502274142,-500.0,0.00044383,120]
[392456644,1761502274151,-500.0,0.00044383,120]
[392456645,1761502274161,-500.0,0.00044383,2]
[392456646,1761502274169,-583.15,0.00044383,120]
[392456647,1761502274178,-500.0,0.00044383,120]
[392456648,1761502274188,-536.02,0.00044383,120]
[392456649,1761502274198,-500.0,0.00044383,120]
[392456650,1761502274207,-500.0,0.00044383,120]
[392456651,1761502274216,-588.41,0.00044383,120]
[392456652,1761502274226,-377.94364813,0.00044383,120]
[392456653,1761502274235,-500.0,0.00044383,120]
[392456654,1761502274245,-574.84,0.00044383,120]
[392456655,1761502274254,-500.0,0.00044383,120]
[392456656,1761502274263,-500.0,0.00044383,120]
[392456657,1761502274274,-500.0,0.00044383,120]
[392456658,1761502274283,-500.0,0.00044383,120]
[392456659,1761502274294,-500.0,0.00044383,120]
[392456660,1761502274303,-546.01,0.00044383,120]
[392456661,1761502274312,-872.67,0.00044383,120]
[392456662,1761502274322,-638.78,0.00044383,120]
[392456663,1761502274331,-500.0,0.00044383,120]
[392456664,1761502274341,-500.0,0.00044383,120]
[392456665,1761502274350,-500.0,0.00044383,120]
[392456666,1761502274359,-500.0,0.00044383,120]
[392456667,1761502274368,-174.66258089,0.00044383,120]
[392456668,1761502274382,-587.03783448,0.00044383,120]
[392456669,1761502274392,-621.96,0.00044383,120]
[392456670,1761502274401,-500.0,0.00044383,120]
[392456671,1761502274410,-3243.76,0.00044383,120]
[392456672,1761502274420,-500.0,0.00044383,120]
[392456673,1761502274431,-500.0,0.00044383,120]
[392456674,1761502274440,-500.0,0.00044383,120]
[392456675,1761502274451,-500.0,0.00044383,120]
[392456676,1761502274463,-500.0,0.00044383,120]
[392456677,1761502274474,-500.0,0.00044383,120]
[392456678,1761502274484,-3325.32,0.00044383,120]
[392456679,1761502274494,-500.0,0.00044383,120]
[392456680,1761502274506,-574.04,0.00044383,120]
[392456681,1761502274517,-500.0,0.00044383,120]
[392456682,1761502274528,-500.0,0.00044383,120]
[392456683,1761502274543,-500.0,0.00044383,120]
[392456684,1761502274553,-500.0,0.00044383,120]
[392456685,1761502274562,-500.0,0.00044383,120]
[392456686,1761502274571,-500.0,0.00044383,120]
[392456687,1761502274580,-500.0,0.00044383,120]
[392456688,1761502274588,-500.0,0.00044383,120]
[392456689,1761502274597,-500.0,0.00044383,120]
[392456690,1761502274608,-237.05685289,0.00044383,120]
[392456691,1761502274618,-300.0,0.00044383,2]
[392456692,1761502274629,-449.37955119,0.00044383,120]
[392456693,1761502274638,-500.0,0.00044383,120]
[392456694,1761502274648,-500.0,0.00044383,120]
[392456695,1761502274656,-500.0,0.00044383,120]
[392456696,1761502274665,-500.0,0.00044383,120]
[392456697,1761502274675,-500.0,0.00044383,120]
[392456698,1761502274691,-3293.52,0.00044383,120]
[392456699,1761502274700,-500.0,0.00044383,120]
[392456700,1761502274711,-500.0,0.00044383,120]
[392456701,1761502274720,-500.0,0.00044383,120]
[392456702,1761502274730,-500.0,0.00044383,7]
[392456703,1761502274739,-500.0,0.00044383,120]
[392456704,1761502274749,-604.69049029,0.00044383,120]
[392456705,1761502274759,-357.67370712,0.00044383,120]
[392456706,1761502274769,-500.0,0.00044383,120]
[392456707,1761502274778,-500.0,0.00044383,120]
[392456708,1761502274788,-3275.26,0.00044383,120]
[392456709,1761502274798,-500.0,0.00044383,120]
[392456710,1761502274807,-500.0,0.00044383,120]
[392456711,1761502274819,-605.66231117,0.00044383,120]
[392456712,1761502274829,-500.0,0.00044383,120]
[392456713,1761502274838,-500.0,0.00044383,120]
[392456714,1761502274848,-500.0,0.00044383,120]
[392456715,1761502274857,-500.0,0.00044383,120]
[392456716,1761502274866,-500.0,0.00044383,120]
[392456717,1761502274875,-500.0,0.00044383,120]
[392456718,1761502274886,-500.0,0.00044383,120]
[392456719,1761502274895,-3408.96,0.00044383,120]
[392456720,1761502274904,-500.0,0.00044383,120]
[392456721,1761502274913,-500.0,0.00044383,120]
[392456722,1761502274923,-500.0,0.00044383,120]